bitfinex/quotes_ETHUSD_20260114
["timestamp","ask_amount","ask_price","bid_price","bid_amount"]
[1768383256049,0.413,3331.2,3330.8,6.00456346]
[1768383256461,0.002,3331.7,3330.9,1.40329336]
[1768383256662,0.002,3331.7,3331.2,1.40329336]
[1768383256862,0.415,3331.7,3331.0,1.40329336]
[1768383257860,0.415,3331.7,3330.8,0.74088568]
[1768383258066,0.415,3331.7,3331.0,1.40329336]
[1768383258485,0.415,3331.7,3330.9,0.8126023]
[1768383258486,0.415,3331.7,3331.2,1.40329336]
[1768383258674,1e-08,3331.7,3331.2,1.40329336]
[1768383258879,1e-08,3331.7,3331.2,1.78652]
[1768383259885,1e-08,3331.7,3331.1,6.00402268]
[1768383260062,1e-08,3331.7,3331.2,2.38692227]
[1768383260481,1e-08,3331.7,3331.3,1.78652]
[1768383260682,1e-08,3331.7,3331.4,6.003482]
[1768383262400,1e-08,3331.7,3331.4,3.001741]
[1768383265187,1.68822945,3331.7,3331.4,3.001741]
[1768383265696,1.68822945,3331.7,3331.5,0.001]
[1768383266078,1e-08,3331.7,3331.5,0.001]
[1768383267271,1e-08,3331.7,3331.6,1.78652]
[1768383267475,1e-08,3331.7,3331.5,3.00260846]
[1768383267699,1e-08,3331.7,3331.6,1.78652]
[1768383272607,1e-08,3331.7,3331.6,3.00156081]
[1768383273510,1e-08,3331.7,3331.5,0.001]
[1768383281122,1e-08,3331.7,3331.6,2.03413605]
[1768383281822,1e-08,3331.7,3331.6,3.00156081]
[1768383282590,1e-08,3331.7,3331.6,5.03569686]
[1768383283021,1e-08,3331.7,3331.6,3.00156081]
[1768383283594,1e-08,3331.7,3331.6,5.03569686]
[1768383283925,1e-08,3331.7,3331.6,3.00156081]
[1768383284102,1e-08,3331.7,3331.6,5.03569686]
[1768383284724,1e-08,3331.7,3331.6,3.00156081]
[1768383285023,1e-08,3331.7,3331.6,5.03569686]
[1768383285729,1e-08,3331.7,3331.5,0.001]
[1768383285928,1e-08,3331.7,3331.6,2.03413605]
[1768383287221,1e-08,3331.7,3331.6,3.00156081]
[1768383287628,1e-08,3331.7,3331.6,5.03569686]
[1768383288229,1e-08,3331.7,3331.6,3.00156081]
[1768383288742,1e-08,3331.7,3331.6,5.03569686]
[1768383289834,1e-08,3331.7,3331.6,2.03413605]
[1768383290133,0.413,3332.2,3331.9,2.03413605]
[1768383290740,1e-08,3332.3,3331.9,2.03413605]
[1768383291815,1e-08,3332.3,3332.0,3.00120048]
[1768383292401,1e-08,3332.3,3332.0,6.00240096]
[1768383292596,1e-08,3332.3,3332.0,6.80605466]
[1768383292812,1e-08,3332.3,3332.1,2.03413605]
[1768383293533,1e-08,3332.3,3332.0,6.80605466]
[1768383295628,1e-08,3332.3,3332.0,3.80485418]
[1768383297180,0.002,3332.4,3332.0,6.80605466]
[1768383297339,0.002,3332.4,3332.1,2.71474152]
[1768383297546,0.002,3332.4,3332.1,2.03413605]
[1768383297710,0.002,3332.4,3332.0,6.00240096]
[1768383298107,0.002,3332.4,3332.0,3.00120048]
[1768383298627,0.002,3332.4,3332.0,5.03533653]
[1768383298826,0.002,3332.4,3332.0,3.00120048]
[1768383299029,0.002,3332.6,3332.0,6.00240096]
[1768383299418,2.09056646,3332.5,3332.0,6.00240096]
[1768383299635,2.09056646,3332.5,3332.0,6.60264106]
[1768383300332,0.002,3332.6,3332.0,3.00120048]
[1768383300748,0.002,3332.6,3332.0,5.03533653]
[1768383301521,0.002,3332.6,3332.0,6.00240096]
[1768383301926,0.002,3332.6,3332.1,2.03413605]
[1768383303053,0.002,3332.6,3332.2,5.03515639]
[1768383303546,0.002,3332.6,3332.3,2.03413605]
[1768383304056,0.002,3332.6,3332.2,3.00102034]
[1768383304411,0.002,3332.6,3332.2,6.00204068]
[1768383304630,0.002,3332.6,3332.3,2.03413605]
[1768383305227,0.002,3332.6,3332.2,3.00102034]
[1768383305946,0.002,3332.6,3332.3,2.36515842]
[1768383306114,0.413,3332.8,3332.5,2.36515842]
[1768383306314,0.413,3332.9,3332.3,8.90360544]
[1768383306530,0.413,3332.9,3332.4,2.36515842]
[1768383307122,0.002,3333.0,3332.6,2.36515842]
[1768383307919,0.002,3333.2,3333.0,2.36515842]
[1768383308148,0.002,3333.2,3333.1,2.60167426]
[1768383308350,1.55036009,3333.6,3333.2,2.36515842]
[1768383309238,4.55014965,3333.6,3333.0,2.36515842]
[1768383309750,4.55014965,3333.6,3333.1,2.36515842]
[1768383309953,2.33009369,3333.5,3333.0,3.00028313]
[1768383310153,3.41278956,3333.6,3333.0,5.36544155]
[1768383310519,3.41278956,3333.6,3333.0,2.36515842]
[1768383311131,5.32405473,3333.6,3333.0,2.36515842]
[1768383312529,5.32405473,3333.6,3333.0,5.36544331]
[1768383313152,8.32384429,3333.6,3333.0,2.36515842]
[1768383313338,8.32384429,3333.6,3332.8,3.00043347]
[1768383313339,0.002,3333.3,3332.8,3.00043347]
[1768383313734,0.002,3333.3,3332.8,5.36559189]
[1768383314136,0.002,3333.3,3332.9,5.36554554]
[1768383314543,0.002,3333.3,3332.9,2.36515842]
[1768383315661,0.002,3333.3,3332.9,5.36553858]
[1768383316263,0.002,3333.3,3333.0,2.36515842]
[1768383317337,0.002,3333.3,3332.7,2.36515842]
[1768383318036,0.002,3333.3,3332.9,2.36515842]
[1768383321673,0.002,3333.3,3332.8,2.70346159]
[1768383321868,0.002,3333.3,3333.0,2.70346159]
[1768383323873,0.002,3333.3,3332.8,2.70346159]
[1768383324064,0.002,3333.3,3332.6,2.70446159]
[1768383326272,0.002,3333.3,3333.2,0.001]
[1768383326573,0.34340281,3333.3,3333.2,0.001]
[1768383328367,3.34343281,3333.3,3333.2,0.001]
[1768383329883,3.34343281,3333.3,3332.6,0.001]
[1768383329884,2.69591884,3333.2,3332.6,0.001]
[1768383330579,12.82862841,3333.3,3332.6,0.001]
[1768383330882,1.59365473,3333.2,3332.6,0.001]
[1768383331770,2.69591884,3333.1,3332.6,0.001]
[1768383332263,1.59365473,3333.2,3332.6,0.001]
[1768383332575,3.00021001,3333.1,3332.6,0.001]
[1768383334756,2.69591884,3333.0,3332.6,0.001]
[1768383335195,4.59381961,3333.2,3332.6,0.001]
[1768383336482,1.59365473,3333.2,3332.6,2.7432664]
[1768383336684,12.48669838,3333.3,3332.6,2.7432664]
[1768383336685,0.34340281,3333.3,3332.6,2.7432664]
[1768383337091,3.34344184,3333.3,3332.6,2.7432664]
[1768383337668,12.82864647,3333.3,3332.6,2.7432664]
[1768383337991,2.69555702,3333.2,3332.6,0.001]
[1768383338368,6.4851656,3333.0,3332.9,0.001]
[1768383338589,10.40353789,3333.0,3332.9,0.001]
[1768383341284,3.91837229,3333.0,3332.9,0.001]
[1768383341488,4.33037229,3333.0,3332.9,0.001]
[1768383342293,4.36787604,3333.0,3332.9,0.001]
[1768383342770,4.33037229,3333.0,3332.9,0.001]
[1768383352910,3.41230003,3333.0,3332.9,0.001]
[1768383359313,6.07035555,3333.0,3332.9,0.001]
[1768383359520,6.33905195,3333.0,3332.9,0.001]
[1768383359734,9.33935198,3333.0,3332.6,0.001]
[1768383359891,2.96425679,3332.9,3331.9,3.00223742]
[1768383360094,1.20638208,3332.8,3332.0,2.7422664]
[1768383360307,3.0005701,3332.7,3332.0,2.7422664]
[1768383360485,6.0011402,3332.7,3332.0,2.7422664]
[1768383360888,0.413,3332.6,3331.9,3.00223742]
[1768383361090,0.413,3332.6,3331.9,5.74450382]
[1768383361427,0.413,3332.6,3332.0,2.7422664]
[1768383362537,3.00075018,3332.5,3332.2,0.001]
[1768383365137,6.64293239,3332.5,3332.2,0.001]
[1768383365301,3.64218221,3332.5,3332.2,0.001]
[1768383366241,6.64293239,3332.5,3332.2,0.001]
[1768383369466,9.68669199,3332.5,3332.2,0.001]
[1768383369650,3.00093028,3332.3,3332.2,0.001]
[1768383370727,0.66431125,3332.3,3332.2,0.001]
[1768383371670,0.66431125,3332.3,3331.9,0.001]
[1768383372764,3.00102034,3332.2,3331.9,0.001]
[1768383373161,3.00102034,3332.2,3331.5,0.414]
[1768383373462,3.00102034,3332.2,3331.5,3.44396635]
[1768383373636,3.00102034,3332.2,3331.6,3.02996635]
[1768383374149,0.66431125,3332.3,3331.7,3.02996635]
[1768383374350,0.413,3332.4,3331.7,3.02996635]
[1768383374644,3.41388664,3332.4,3331.7,6.03142624]
[1768383374864,3.41388664,3332.4,3331.8,3.02996635]
[1768383375327,6.41477328,3332.4,3331.8,3.02996635]
[1768383375527,6.41477328,3332.4,3332.2,0.001]
[1768383375727,0.64522827,3332.3,3332.2,0.001]
[1768383378465,3.64615855,3332.3,3332.2,0.001]
[1768383382062,6.64708883,3332.3,3331.9,3.02996635]
[1768383382274,6.64708883,3332.3,3331.6,2.92808148]
[1768383382432,6.00186056,3332.3,3331.6,2.92808148]
[1768383382962,3.00093028,3332.3,3331.6,5.92963672]
[1768383383362,3.00093028,3332.3,3331.7,2.92808148]
[1768383385577,6.00186056,3332.3,3331.7,2.92808148]
[1768383385873,3.00093028,3332.3,3331.7,2.92808148]
[1768383387176,3.00093028,3332.3,3332.0,0.001]
[1768383387474,3.64616017,3332.3,3332.0,0.001]
[1768383391885,6.64709045,3332.3,3332.0,0.001]
[1768383392757,3.64616017,3332.3,3332.0,0.001]
[1768383395094,6.64709045,3332.3,3332.0,0.001]
[1768383397690,3.36443582,3332.2,3331.5,0.001]
[1768383397900,4.3280757,3332.1,3331.5,0.001]
[1768383398190,0.71937696,3332.0,3331.5,0.001]
[1768383398491,0.450515,3332.0,3331.5,0.001]
[1768383399268,3.50857611,3332.0,3331.5,0.001]
[1768383399469,6.00276126,3331.8,3331.5,0.001]
[1768383399681,0.93295272,3331.7,3331.5,0.001]
[1768383400679,3.99101383,3331.7,3331.5,0.001]
[1768383401393,3.99101383,3331.7,3330.9,3.22393888]
[1768383401595,3.00156081,3331.6,3330.9,3.22393888]
[1768383402401,3.41456081,3331.6,3330.9,3.22393888]
[1768383403212,3.41456081,3331.6,3330.9,6.22611379]
[1768383404087,6.47262192,3331.6,3330.9,6.22611379]
[1768383404505,6.47262192,3331.6,3330.9,3.22393888]
[1768383405508,6.47262192,3331.6,3330.9,6.22611681]
[1768383406487,6.47262192,3331.6,3330.9,3.22393888]
[1768383406688,3.41456081,3331.6,3330.9,3.22393888]
[1768383407410,3.41456081,3331.6,3330.9,6.2261145]
[1768383408200,3.41456081,3331.6,3330.9,3.22393888]
[1768383408716,3.41456081,3331.6,3330.9,6.22613008]
[1768383410912,3.41456081,3331.6,3331.2,0.001]
[1768383411204,5.01457,3331.6,3331.2,0.001]
[1768383412517,2.01300919,3331.6,3331.2,0.001]
[1768383412815,3.00323831,3332.0,3331.2,3.22493888]
[1768383413016,0.413,3331.9,3331.2,3.22493888]
[1768383413192,0.413,3331.9,3331.2,0.001]
[1768383413193,3.50857724,3331.9,3331.2,0.001]
[1768383413390,9.99699804,3331.9,3331.2,0.001]
[1768383413696,9.06082237,3331.8,3331.2,0.001]
[1768383413882,1.59622432,3331.7,3331.2,0.001]
[1768383414580,1.6337427,3331.7,3331.2,0.001]
[1768383414975,1.59622432,3331.7,3331.2,0.001]
[1768383416113,3.00156081,3331.6,3331.2,0.001]
[1768383428047,6.0028699,3331.8,3331.2,0.001]
[1768383428345,1.19504327,3331.7,3331.2,0.001]
[1768383428565,0.92627339,3331.7,3331.2,0.001]
[1768383429847,3.00156081,3331.6,3331.2,0.001]
[1768383434176,0.03752063,3331.5,3331.2,0.001]
[1768383434469,2.84686402,3331.4,3331.2,0.001]
[1768383434678,3.82544457,3331.3,3331.2,0.001]
[1768383434846,0.97858055,3331.3,3331.2,0.001]
[1768383435041,3.29738465,3331.5,3331.2,0.001]
[1768383435750,3.001741,3331.4,3331.2,0.001]
[1768383435957,2.84686402,3331.3,3330.7,0.001]
[1768383436172,2.84686402,3331.3,3330.7,3.00336261]
[1768383437168,2.84686402,3331.3,3330.7,0.001]
[1768383437670,3.001741,3331.4,3330.7,3.11745092]
[1768383437871,4.01810058,3331.4,3330.7,3.11745092]
[1768383439773,7.01984158,3331.4,3330.7,3.11745092]
[1768383440143,4.01810058,3331.4,3330.7,3.11745092]
[1768383440344,9.86447379,3331.4,3330.7,3.11745092]
[1768383440555,9.82695203,3331.4,3330.7,3.11745092]
[1768383440753,3.83110565,3331.3,3330.7,0.001]
[1768383441084,3.86862853,3331.3,3330.7,0.001]
[1768383441777,2.80711045,3331.2,3330.7,0.001]
[1768383442476,5.80910713,3331.2,3330.7,0.001]
[1768383443169,5.80904562,3331.2,3330.7,0.001]
[1768383443372,6.4923497,3331.2,3330.7,0.001]
[1768383444083,2.80711045,3331.1,3330.7,0.001]
[1768383444585,3.00210147,3331.0,3330.7,0.001]
[1768383444749,5.80915283,3331.1,3330.7,0.001]
[1768383445984,3.00204238,3331.1,3330.7,0.001]
[1768383446150,0.6687334,3331.0,3330.7,0.001]
[1768383446863,3.67086514,3331.0,3330.7,0.001]
[1768383447263,6.47797559,3331.0,3330.7,0.001]
[1768383447797,3.67086514,3331.0,3330.7,0.001]
[1768383448888,6.51550185,3331.0,3330.7,0.001]
[1768383449082,0.9930535,3330.9,3330.7,0.001]
[1768383449710,2.80711045,3330.8,3329.3,0.001]
[1768383449921,2.80711045,3330.8,3329.8,3.00313133]
[1768383450089,2.84463897,3330.8,3329.8,3.00313133]
[1768383450289,2.80711045,3330.7,3329.8,5.09176029]
[1768383450791,5.80957246,3330.6,3329.8,2.08862896]
[1768383450989,5.80957246,3330.6,3329.8,5.50477493]
[1768383452703,8.81203447,3330.6,3329.8,5.50477493]
[1768383453832,2.80711045,3330.4,3329.8,3.41614597]
[1768383454039,2.80711045,3330.4,3329.9,0.3416146]
[1768383454727,3.002612,3330.5,3329.9,0.3416146]
[1768383455239,5.99880542,3330.5,3329.9,0.3416146]
[1768383455439,5.99880542,3330.5,3329.8,0.413]
[1768383455637,9.00141742,3330.5,3329.8,0.413]
[1768383456114,5.99880542,3330.5,3329.8,3.4161805]
[1768383457538,5.99880542,3330.5,3329.8,3.0031805]
[1768383457741,5.99880542,3330.5,3329.8,3.4161805]
[1768383458039,5.99880542,3330.5,3329.8,4.26303988]
[1768383458207,2.99619342,3330.4,3329.8,4.26303988]
[1768383458536,3.002612,3330.5,3329.8,4.26303988]
[1768383458931,5.99880542,3330.5,3329.8,4.26303988]
[1768383459237,5.99880542,3330.5,3330.2,0.001]
[1768383460941,2.99619342,3330.5,3330.2,0.001]
[1768383461338,5.99875409,3330.5,3330.2,0.001]
[1768383461635,2.99619342,3330.3,3330.2,0.001]
[1768383461839,9.00131476,3330.5,3330.2,0.001]
[1768383462021,3.03372644,3330.4,3330.2,0.001]
[1768383462221,2.99619342,3330.4,3330.2,0.001]
[1768383463055,5.9989259,3330.3,3329.7,3.00326737]
[1768383463340,2.99619342,3330.2,3329.8,0.34162674]
[1768383468245,2.99619342,3330.2,3329.8,3.34480917]
[1768383469145,2.99619342,3330.2,3329.8,0.34162674]
[1768383471121,2.99619342,3330.2,3330.1,0.001]
[1768383471547,2.99819342,3330.2,3330.1,0.001]
[1768383473138,0.002,3330.2,3330.1,0.001]
[1768383476344,0.30181934,3330.2,3330.1,0.001]
[1768383476544,3.30464199,3330.2,3330.1,0.001]
[1768383477560,0.30181934,3330.2,3330.1,0.001]
[1768383477759,0.002,3330.2,3330.1,0.001]
[1768383477926,3.00482265,3330.2,3330.1,0.001]
[1768383478852,0.002,3330.2,3330.1,0.001]
[1768383479525,2.99819342,3330.2,3330.1,0.001]
[1768383480982,2.99619342,3330.1,3329.3,0.001]
[1768383481128,2.99619342,3330.1,3329.4,0.413]
[1768383483052,2.99619342,3330.1,3329.5,3.00345397]
[1768383483053,2.99619342,3330.0,3329.5,3.00345397]
[1768383483669,0.002,3330.2,3329.6,1.99615262]
[1768383483866,0.002,3330.2,3329.7,1.99715262]
[1768383484028,0.002,3330.2,3329.8,0.19971526]
[1768383484424,0.002,3330.2,3329.7,0.414]
[1768383484904,0.002,3330.2,3329.8,1.99450032]
[1768383485378,0.002,3330.2,3329.9,4.99596018]
[1768383487229,0.002,3330.2,3330.0,1.98965777]
[1768383487862,0.002,3330.2,3330.0,4.99264883]
[1768383488669,0.002,3330.2,3330.1,1.98652317]
[1768383489577,0.002,3330.2,3330.1,4.98943599]
[1768383490460,0.002,3330.2,3330.1,1.98652317]
[1768383490659,0.002,3330.5,3330.1,3.00291282]
[1768383490858,2.81086209,3330.5,3330.1,3.00291282]
[1768383491065,0.002,3330.5,3330.1,4.98637298]
[1768383492981,0.002,3330.5,3330.1,7.9892858]
[1768383493178,0.002,3330.5,3330.2,1.98046711]
[1768383494245,0.002,3330.5,3330.3,4.98172881]
[1768383494561,2.80886209,3330.9,3330.3,6.00546496]
[1768383495680,3.41510657,3331.0,3330.3,6.00546496]
[1768383495880,0.26868982,3330.9,3330.3,6.00546496]
[1768383496189,3.41510657,3331.0,3330.3,3.00273248]
[1768383496360,0.26867,3330.9,3330.3,3.00273248]
[1768383496560,0.002,3330.5,3330.3,3.00273248]
[1768383496761,0.002,3330.5,3330.3,3.58060911]
[1768383498066,2.81086209,3330.5,3330.3,3.58060911]
[1768383498671,2.81086209,3330.5,3330.2,3.00276503]
[1768383498980,2.84000521,3330.4,3329.7,3.00425016]
[1768383499386,2.84000521,3330.4,3329.8,3.00315006]
[1768383499684,2.84000521,3330.3,3329.7,0.001]
[1768383499909,3.42427158,3330.2,3329.7,0.001]
[1768383502891,6.42711491,3330.2,3329.7,0.001]
[1768383503579,3.42427158,3330.2,3329.7,0.001]
[1768383504484,6.42711166,3330.2,3329.7,0.001]
[1768383504685,3.42427158,3330.2,3329.7,0.001]
[1768383506118,6.42709725,3330.2,3329.7,0.001]
[1768383506585,0.42516962,3330.1,3329.7,0.001]
[1768383506786,3.42810243,3330.1,3329.7,0.001]
[1768383507090,3.26517483,3330.1,3329.7,0.001]
[1768383507813,2.84000521,3330.0,3329.7,0.001]
[1768383508307,2.84000521,3330.0,3329.5,0.413]
[1768383508607,2.84000521,3330.0,3329.3,0.001]
[1768383508807,2.84000521,3330.0,3329.4,0.413]
[1768383509176,0.42516962,3330.1,3329.4,0.413]
[1768383509507,3.42427158,3330.2,3329.4,0.413]
[1768383510107,2.84000521,3330.1,3329.4,0.413]
[1768383510803,2.84000521,3330.1,3329.5,3.00345397]
[1768383512407,2.84000521,3330.1,3329.5,6.00690794]
[1768383513882,2.84000521,3330.1,3329.5,3.00345397]
[1768383516411,2.84000521,3330.1,3329.6,0.413]
[1768383516621,2.88656842,3329.9,3329.3,0.001]
[1768383516921,2.92410708,3329.9,3329.3,0.001]
[1768383517083,2.88656842,3329.9,3329.3,0.414]
[1768383518744,5.88967268,3329.9,3329.3,3.41759904]
[1768383519022,6.78268582,3329.9,3329.3,3.41759904]
[1768383519227,3.77958156,3329.9,3329.3,3.41759904]
[1768383519405,3.81712022,3329.9,3329.3,3.41759904]
[1768383519825,2.88656842,3329.8,3329.3,3.41759904]
[1768383520005,2.88656842,3329.8,3329.3,3.00459904]
[1768383520202,0.38171202,3329.8,3329.3,3.00459904]
[1768383520525,0.002,3329.8,3329.6,0.001]
[1768383520901,2.88856842,3329.8,3329.6,0.001]
[1768383521699,2.92610821,3329.8,3329.6,0.001]
[1768383522109,2.92610821,3329.8,3329.3,3.00459904]
[1768383522741,0.03953979,3329.8,3329.3,3.00459904]
[1768383522921,2.88656842,3329.7,3329.3,3.00459904]
[1768383524402,0.59491416,3329.8,3329.3,3.00459904]
[1768383525499,2.88656842,3329.7,3329.3,6.00823343]
[1768383525900,0.002,3329.8,3329.3,6.00823343]
[1768383526344,2.88856842,3329.8,3329.3,6.00823343]
[1768383526637,0.002,3329.8,3329.3,6.00823343]
[1768383527035,0.002,3329.8,3329.3,8.92346781]
[1768383527347,0.002,3329.8,3329.3,9.56559115]
[1768383528242,0.002,3329.8,3329.4,0.413]
[1768383529044,0.002,3329.8,3329.3,9.56559115]
[1768383529213,0.002,3329.8,3329.5,3.00345397]
[1768383530038,2.88856842,3329.8,3329.5,3.00345397]
[1768383530251,2.88856842,3329.8,3329.4,0.413]
[1768383531116,0.002,3329.8,3329.5,0.413]
[1768383532212,3.19282293,3329.8,3329.5,0.413]
[1768383532713,0.30625451,3329.8,3329.5,0.413]
[1768383533422,0.002,3329.8,3329.5,0.413]
[1768383535538,2.88656842,3329.7,3329.5,0.413]
[1768383535741,2.88656842,3329.7,3329.5,3.41644768]
[1768383536035,0.002,3329.8,3329.5,3.41644768]
[1768383536439,2.88656842,3329.7,3329.5,3.41644768]
[1768383536740,2.88856842,3329.8,3329.5,3.41644768]
[1768383536940,0.002,3329.8,3329.5,3.41644768]
[1768383537847,0.002,3329.8,3329.5,0.413]
[1768383538139,2.88856842,3329.8,3329.5,0.413]
[1768383538448,0.002,3329.8,3329.5,0.413]
[1768383538745,0.002,3329.8,3329.5,3.41642331]
[1768383539835,2.88856842,3329.8,3329.5,0.413]
[1768383540013,0.002,3329.8,3329.5,0.413]
[1768383541534,0.30625448,3329.8,3329.5,0.413]
[1768383542330,3.1928229,3329.8,3329.5,0.413]
[1768383542857,0.30625448,3329.8,3329.5,0.413]
[1768383543562,0.30625448,3329.8,3329.4,0.413]
[1768383543563,3.16291838,3329.8,3329.4,0.413]
[1768383543748,0.30625448,3329.8,3329.4,0.413]
[1768383543951,0.002,3329.5,3329.4,0.413]
[1768383544462,0.002,3329.8,3329.4,3.32823438]
[1768383544761,2.44108876,3329.8,3329.4,0.413]
[1768383545059,0.55016382,3329.8,3329.4,0.413]
[1768383545644,0.002,3329.8,3329.6,2.96283981]
[1768383545830,0.002,3329.8,3329.5,3.00345397]
[1768383546136,0.002,3329.8,3329.6,2.96283981]
[1768383546359,0.002,3330.1,3329.8,2.96283981]
[1768383546724,3.00458213,3330.5,3330.0,2.96283981]
[1768383546927,0.26889239,3330.4,3330.0,2.96283981]
[1768383547251,0.26889239,3330.3,3330.0,3.37583981]
[1768383547477,3.60528036,3330.5,3330.0,3.37583981]
[1768383547627,0.26883318,3330.4,3330.0,3.37583981]
[1768383547825,3.60528036,3330.5,3330.0,3.37583981]
[1768383548057,0.62936122,3330.4,3330.0,3.37583981]
[1768383548258,0.36052804,3330.4,3330.0,3.37583981]
[1768383549272,0.36052804,3330.4,3330.1,2.96283981]
[1768383549489,0.60269823,3330.5,3330.1,2.96283981]
[1768383549490,0.002,3330.5,3330.1,2.96283981]
[1768383549785,3.00456455,3330.5,3330.1,2.96283981]
[1768383549943,0.002,3330.5,3330.1,2.96283981]
[1768383551784,0.002,3330.5,3330.2,2.96283981]
[1768383552772,0.002,3330.5,3330.3,2.96283981]
[1768383554157,0.002,3330.5,3330.4,2.96283981]
[1768383554376,0.002,3331.2,3330.4,2.96283981]
[1768383554546,0.26844103,3331.1,3330.4,2.96283981]
[1768383554878,0.30596729,3331.0,3330.4,2.96283981]
[1768383555090,0.03752626,3331.0,3330.4,3.37583981]
[1768383555661,0.03752739,3330.9,3330.4,3.37583981]
[1768383556385,6.04198163,3330.9,3330.4,2.96283981]
[1768383556550,0.60419816,3330.8,3330.1,2.96283981]
[1768383556748,0.03752964,3330.7,3330.1,2.96283981]
[1768383557386,0.002,3330.2,3330.1,2.96283981]
[1768383557559,0.002,3330.2,3330.1,5.96575263]
[1768383559588,0.002,3330.2,3330.0,3.41596745]
[1768383559788,0.002,3330.2,3330.1,3.00291282]
[1768383560352,0.002,3330.2,3330.0,0.413]
[1768383560553,0.002,3330.2,3330.0,3.41597716]
[1768383560776,0.002,3330.2,3330.0,6.17595433]
[1768383560969,0.002,3330.2,3330.0,3.41597716]
[1768383561284,0.002,3330.2,3330.0,0.413]
[1768383561584,0.002,3330.2,3330.1,2.75997717]
[1768383564389,0.002,3330.2,3330.1,5.76288999]
[1768383565283,0.002,3330.2,3330.1,2.75997717]
[1768383566966,0.002,3330.2,3330.1,3.00291282]
[1768383567176,0.002,3330.2,3330.1,5.76288999]
[1768383569093,0.002,3330.2,3330.1,3.00291282]
[1768383570890,0.002,3330.2,3330.0,0.413]
[1768383571188,0.002,3330.2,3330.0,3.41599442]
[1768383574696,0.002,3330.5,3330.0,3.41599442]
[1768383574895,0.30619106,3330.5,3330.0,3.41599442]
[1768383575076,0.30619106,3330.5,3330.1,2.75997717]
[1768383575283,0.30619106,3330.5,3330.1,3.00285415]
[1768383575482,0.30619106,3330.5,3330.2,2.52231999]
[1768383577403,0.30619106,3330.5,3330.1,3.00285415]
[1768383577704,0.30619106,3330.5,3330.2,3.00279913]
[1768383577874,0.002,3330.5,3330.2,3.00279913]
[1768383579112,0.002,3330.5,3330.1,3.00287591]
[1768383579407,0.002,3330.5,3330.2,2.52231999]
[1768383583013,0.002,3330.5,3330.2,5.5251092]
[1768383584307,0.002,3330.5,3330.3,2.52231999]
[1768383584516,0.30619092,3330.5,3330.3,2.52231999]
[1768383590322,0.002,3330.5,3330.3,2.52231999]
[1768383594827,0.0395319,3330.5,3330.3,2.52231999]
[1768383596622,3.04209372,3330.5,3330.3,2.52231999]
[1768383596916,3.04209372,3330.5,3330.0,0.413]
[1768383597119,0.26896815,3330.4,3329.8,0.413]
[1768383597286,1.15277276,3330.3,3329.8,0.413]
[1768383597487,0.88380461,3330.3,3329.8,2.93531999]
[1768383597724,0.88380461,3330.3,3329.8,2.52231999]
[1768383598690,3.88662379,3330.3,3329.8,2.52231999]
[1768383598891,0.38866238,3330.2,3329.8,2.52231999]
[1768383600618,2.11805074,3330.1,3329.7,0.414]
[1768383600810,3.39156607,3330.2,3329.7,0.414]
[1768383600983,3.39156607,3330.2,3329.7,2.93631999]
[1768383601186,3.39156607,3330.2,3329.7,2.52331999]
[1768383601417,0.64319194,3330.1,3329.7,2.52331999]
[1768383601618,0.64319194,3330.1,3329.7,0.001]
[1768383602020,2.54591044,3330.0,3328.9,3.00397491]
[1768383602224,2.54591044,3330.0,3328.8,0.001]
[1768383602225,2.63771673,3330.0,3328.8,0.001]
[1768383602422,2.54591044,3329.8,3329.1,0.413]
[1768383602723,2.80050148,3329.7,3329.1,0.413]
[1768383602887,2.54591044,3329.5,3329.1,0.413]
[1768383603614,2.54591044,3329.5,3328.8,0.001]
[1768383603821,6.00672752,3329.6,3328.9,0.413]
[1768383604619,5.5492742,3329.6,3328.9,0.413]
[1768383604818,0.88071636,3329.5,3328.9,0.413]
[1768383605046,0.88071636,3329.5,3328.9,3.41697834]
[1768383605226,3.8841708,3329.5,3328.9,3.41697834]
[1768383606615,3.8841708,3329.5,3328.9,0.413]
[1768383607929,6.88762524,3329.5,3328.9,0.413]
[1768383608099,0.94335357,3329.4,3328.9,0.413]
[1768383609418,3.52419875,3329.4,3328.9,0.413]
[1768383609733,2.58084518,3329.3,3328.9,0.413]
[1768383610237,2.58084518,3329.3,3328.9,3.41699052]
[1768383612519,2.58084518,3329.6,3328.9,3.41699052]
[1768383613107,2.58084518,3329.5,3328.9,3.41699052]
[1768383613306,0.03754204,3329.6,3328.9,4.05919636]
[1768383613732,2.58084518,3329.6,3328.9,4.05919636]
[1768383614819,2.61838722,3329.6,3328.9,4.05919636]
[1768383615435,0.03754204,3329.6,3328.9,4.05919636]
[1768383615807,0.03754204,3329.6,3328.9,6.47414881]
[1768383616120,3.0032971,3329.7,3328.9,9.47814412]
[1768383616320,3.0032971,3329.7,3328.9,8.83593828]
[1768383617114,3.0032971,3329.7,3329.0,2.41495245]
[1768383617445,0.002,3329.4,3329.1,2.41495245]
[1768383618446,0.002,3329.4,3329.2,2.41495245]
[1768383618854,0.002,3329.4,3329.3,2.73972953]
[1768383621247,0.002,3329.4,3329.3,0.413]
[1768383623946,0.002,3329.4,3329.3,3.41663439]
[1768383625048,0.002,3329.4,3329.3,0.413]
[1768383625746,0.002,3329.4,3329.3,3.41663439]
[1768383628041,0.002,3329.4,3329.3,5.74336392]
[1768383629013,0.002,3329.4,3329.3,2.73972953]
[1768383629415,0.002,3329.4,3329.3,3.41663439]
[1768383629620,0.002,3329.4,3329.3,5.74336392]
[1768383630044,0.002,3329.4,3329.3,5.33036392]
[1768383630453,0.002,3329.4,3329.3,5.74336392]
[1768383632859,0.002,3329.4,3329.3,2.73972953]
[1768383633356,0.002,3329.4,3329.3,0.413]
[1768383635052,0.002,3329.4,3329.2,0.413]
[1768383636158,0.002,3329.4,3329.1,3.41677084]
[1768383641270,0.002,3329.4,3329.1,5.38716627]
[1768383642279,0.002,3329.4,3329.1,3.41677084]